[Event "SWE-ch 2019"]
[Site "Eskilstuna"]
[Date "2019.07.10"]
[Round "5.3"]
[White "Smith, Axel"]
[Black "Hillarp Persson, Tiger"]
[Result "1-0"]
[ECO "E25"]
[WhiteElo "2469"]
[BlackElo "2562"]
[Annotator "ChessBase"]
[PlyCount "165"]
[EventDate "2019.07.06"]
[EventType "tourn"]
[EventCountry "SWE"]
[SourceTitle "playchess.com"]
[Source "ChessBase"]
[SourceQuality "1"]
[TimeControl "40/5400+30:1800+30"]

1. d4 {[%emt 0:00:00]} Nf6 {[%emt 0:00:00]} 2. c4 {[%emt 0:00:00]} e6 {[%emt 0:00:00]} 3. Nc3 {[%emt 0:00:00]} Bb4 {[%emt 0:00:08]} 4. f3 {[%emt 0:00:00]} d5 {[%emt 0:12:03]} 5. a3 {[%emt 0:00:00]} Bxc3+ {[%emt 0:00:19]} 6. bxc3 {[%emt 0:00:00]} c5 {[%emt 0:00:40]} 7. cxd5 {[%emt 0:00:00]} Nxd5 {[%emt 0:00:13]} 8. dxc5 {[%emt 0:00:02]} Qa5 {[%emt 0:02:30]} 9. e4 {[%emt 0:00:04]} Ne7 {[%emt 0:04:08]} 10. Be3 {[%emt 0:00:38]} Nd7 {[%emt 0:00:40]} 11. Qb3 {[%emt 0:05:40]} O-O {[%emt 0:03:23]} 12. Bb5 {[%emt 0:02:48]} Qc7 {[%emt 0:11:06]} 13. Bxd7 {[%emt 0:00:12]} Bxd7 {[%emt 0:00:08]} 14. Ne2 {[%emt 0:00:08]} Nc6 {[%emt 0:02:14]} 15. O-O {[%emt 0:14:56]} Na5 {[%emt 0:02:10]} 16. Qb4 {[%emt 0:00:38]} Nc6 {[%emt 0:00:54]} 17. Qb3 {[%emt 0:20:27]} Na5 {[%emt 0:01:14]} 18. Qb4 {[%emt 0:00:16]} Nc6 {[%emt 0:00:11]} 19. Qb2 {[%emt 0:05:39]} Na5 {[%emt 0:03:03]} 20. Bf2 {[%emt 0:00:31]} e5 {[%emt 0:05:46]} 21. Qb4 {[%emt 0:14:31]} Nc6 {[%emt 0:00:42]} 22. Qb2 {[%emt 0:00:17]} Na5 {[%emt 0:00:19]} 23. Rab1 {[%emt 0:06:59]} Rfd8 {[%emt 0:12:24]} 24. Qb4 {[%emt 0:02:49]} f5 {[%emt 0:17:09]} 25. Rfd1 {[%emt 0:07:39]} fxe4 {[%emt 0:02:34]} 26. Qxe4 {[%emt 0:01:44]} Be8 {[%emt 0:02:55]} 27. Qb4 {[%emt 0:02:29]} Bg6 {[%emt 0:01:49]} 28. Rbc1 {[%emt 0:00:39]} Nc6 {[%emt 0:03:00]} 29. Qa4 {[%emt 0:02:59]} Rxd1+ {[%emt 0:00:34]} 30. Rxd1 {[%emt 0:00:09]} Rd8 {[%emt 0:01:14]} 31. Ng3 {[%emt 0:05:21]} h6 {[%emt 0:03:17]} 32. h4 {[%emt 0:00:12]} Kf8 {[%emt 0:03:05]} 33. Rxd8+ {[%emt 0:01:32]} Qxd8 {[%emt 0:00:11]} 34. Qg4 {[%emt 0:00:32]} Qe8 {[%emt 0:03:17]} 35. Be3 {[%emt 0:03:13]} h5 {[%emt 0:01:14]} 36. Qg5 {[%emt 0:01:04]} Qf7 {[%emt 0:00:06]} 37. Bf2 {[%emt 0:02:03]} Qf6 {[%emt 0:01:02]} 38. Qd2 {[%emt 0:01:23]} Qd8 {[%emt 0:02:03]} 39. Qb2 {[%emt 0:00:56]} Qd7 {[%emt 0:00:49]} 40. Qb3 {[%emt 0:00:53]} Qf7 {[%emt 0:00:42]} 41. Qd1 {[%emt 0:30:35]} Kg8 {[%emt 0:06:12]} 42. Nf1 {[%emt 0:00:00]} Qa2 {[%emt 0:15:05]} 43. Qc1 {[%emt 0:00:00]} Qb1 {[%emt 0:00:39]} 44. Qxb1 {[%emt 0:00:00]} Bxb1 {[%emt 0:00:09]} 45. g4 {[%emt 0:00:00]} g6 {[%emt 0:05:11]} 46. Ng3 {[%emt 0:00:00]} hxg4 {[%emt 0:00:07]} 47. fxg4 {[%emt 0:00:00]} Kf7 {[%emt 0:00:30]} 48. Kg2 {[%emt 0:00:00]} Ke6 {[%emt 0:00:25]} 49. Kf3 {[%emt 0:00:00]} Kd5 {[%emt 0:00:53]} 50. h5 {[%emt 0:00:00]} gxh5 {[%emt 0:00:10]} 51. gxh5 {[%emt 0:00:00]} Bh7 {[%emt 0:01:44]} 52. h6 {[%emt 0:00:00]} Na5 {[%emt 0:01:32]} 53. Be3 {[%emt 0:00:24]} Nc4 {[%emt 0:00:33]} 54. Bc1 {[%emt 0:00:39]} a6 {[%emt 0:00:47]} 55. Nh5 {[%emt 0:00:58]} Ke6 {[%emt 0:00:31]} 56. Kg4 {[%emt 0:01:57]} e4 {[%emt 0:02:05]} 57. Kf4 {[%emt 0:00:52]} Ne5 {[%emt 0:01:22]} 58. Be3 {[%emt 0:00:13]} Nc4 {[%emt 0:00:25]} 59. Bd4 {[%emt 0:00:36]} e3 {[%emt 0:01:00]} 60. Bxe3 {[%emt 0:00:15]} Nxa3 {[%emt 0:00:06]} 61. Bd4 {[%emt 0:01:48]} Nc4 {[%emt 0:01:00]} 62. Nf6 {[%emt 0:00:41]} Bg6 {[%emt 0:00:10]} 63. h7 {[%emt 0:00:53]} Bxh7 {[%emt 0:00:05]} 64. Nxh7 {[%emt 0:00:02]} a5 {[%emt 0:00:08]} 65. Ke4 {[%emt 0:01:05]} a4 {[%emt 0:00:06]} 66. Ng5+ {[%emt 0:00:05]} Kd7 {[%emt 0:00:57]} 67. Nf3 {[%emt 0:00:01]} a3 {[%emt 0:00:16]} 68. Ne1 {[%emt 0:00:26]} a2 {[%emt 0:00:34]} 69. Nc2 {[%emt 0:00:02]} Ke6 {[%emt 0:00:24]} 70. Na1 {[%emt 0:02:37]} Nb2 {[%emt 0:01:47]} 71. Bg1 {[%emt 0:00:59]} Nc4 {[%emt 0:00:35]} 72. Kd4 {[%emt 0:00:22]} Ne5 {[%emt 0:00:21]} 73. Be3 {[%emt 0:00:28]} Kf5 {[%emt 0:00:31]} 74. Bc1 {[%emt 0:00:36]} Ke6 {[%emt 0:00:22]} 75. Bf4 {[%emt 0:00:26]} Nc6+ {[%emt 0:00:37]} 76. Kc4 {[%emt 0:00:30]} Kf5 {[%emt 0:00:06]} 77. Bc1 {[%emt 0:00:51]} Ke4 {[%emt 0:00:06]} 78. Bb2 {[%emt 0:00:34]} Ne5+ {[%emt 0:00:43]} 79. Kb3 {[%emt 0:00:22]} Nd3 {[%emt 0:00:31]} 80. Ba3 {[%emt 0:00:26]} Kd5 {[%emt 0:00:16]} 81. Nc2 {[%emt 0:00:32]} Ne1 {[%emt 0:00:50]} 82. Bb2 {[%emt 0:00:38]} Nd3 {[%emt 0:00:45]} 83. Nb4+ {[%emt 0:00:30]} 1-0

[Event "SWE-ch 2019"]
[Site "Eskilstuna"]
[Date "2019.07.10"]
[Round "5.4"]
[White "Kucuksari, Kaan"]
[Black "Hector, Jonny"]
[Result "0-1"]
[ECO "D23"]
[WhiteElo "2310"]
[BlackElo "2487"]
[Annotator "ChessBase"]
[PlyCount "137"]
[EventDate "2019.07.06"]
[EventType "tourn"]
[EventCountry "SWE"]
[SourceTitle "playchess.com"]
[Source "ChessBase"]
[SourceQuality "1"]
[TimeControl "40/5400+30:1800+30"]

1. d4 {[%emt 0:01:48]} d5 {[%emt 0:00:07]} 2. Nf3 {[%emt 0:00:04]} Nf6 {[%emt 0:00:09]} 3. c4 {[%emt 0:00:05]} c6 {[%emt 0:00:08]} 4. Qb3 {[%emt 0:00:07]} dxc4 {[%emt 0:01:48]} 5. Qxc4 {[%emt 0:00:02]} Bg4 {[%emt 0:00:24]} 6. Nc3 {[%emt 0:00:03]} Nbd7 {[%emt 0:01:03]} 7. Bf4 {[%emt 0:02:16]} Nb6 {[%emt 0:01:13]} 8. Qd3 {[%emt 0:00:39]} Bxf3 {[%emt 0:00:30]} 9. gxf3 {[%emt 0:00:12]} Nfd5 {[%emt 0:00:21]} 10. Nxd5 {[%emt 0:00:32]} Nxd5 {[%emt 0:00:20]} 11. Bd2 {[%emt 0:00:03]} e6 {[%emt 0:00:27]} 12. Qb3 {[%emt 0:02:12]} Qc7 {[%emt 0:07:32]} 13. e4 {[%emt 0:06:07]} Nb6 {[%emt 0:01:23]} 14. f4 {[%emt 0:13:20]} O-O-O {[%emt 0:03:41]} 15. Be3 {[%emt 0:05:44]} Bd6 {[%emt 0:03:40]} 16. a4 {[%emt 0:03:03]} Bxf4 {[%emt 0:05:11]} 17. a5 {[%emt 0:00:11]} Nd7 {[%emt 0:01:34]} 18. a6 {[%emt 0:00:27]} Bxe3 {[%emt 0:05:18]} 19. axb7+ {[%emt 0:11:18]} Kb8 {[%emt 0:00:21]} 20. fxe3 {[%emt 0:08:59]} Qxb7 {[%emt 0:06:54]} 21. Qc2 {[%emt 0:06:03]} c5 {[%emt 0:08:40]} 22. Ba6 {[%emt 0:00:30]} Qb4+ {[%emt 0:00:30]} 23. Qc3 {[%emt 0:05:03]} Qxc3+ {[%emt 0:02:44]} 24. bxc3 {[%emt 0:00:00]} cxd4 {[%emt 0:00:33]} 25. exd4 {[%emt 0:05:33]} Nb6 {[%emt 0:02:54]} 26. Ke2 {[%emt 0:00:51]} Rd7 {[%emt 0:02:18]} 27. Ke3 {[%emt 0:07:30]} Rhd8 {[%emt 0:06:03]} 28. Rhd1 {[%emt 0:00:01]} Rc7 {[%emt 0:04:38]} 29. Rdc1 {[%emt 0:01:08]} e5 {[%emt 0:03:15]} 30. d5 {[%emt 0:00:33]} Rd6 {[%emt 0:02:36]} 31. c4 {[%emt 0:02:46]} Nd7 {[%emt 0:03:18]} 32. Bb5 {[%emt 0:14:56]} Nc5 {[%emt 0:00:57]} 33. Rcb1 {[%emt 0:01:29]} Kc8 {[%emt 0:02:22]} 34. Bc6 {[%emt 0:00:27]} Rh6 {[%emt 0:04:47]} 35. Ra5 {[%emt 0:01:09]} Rh3+ {[%emt 0:00:17]} 36. Kf2 {[%emt 0:00:03]} Nxe4+ {[%emt 0:00:52]} 37. Kg2 {[%emt 0:00:03]} Rc3 {[%emt 0:00:27]} 38. Rab5 {[%emt 0:02:51]} Rc2+ {[%emt 0:03:51]} 39. Kg1 {[%emt 0:00:32]} Kd8 {[%emt 0:00:40]} 40. Rb8+ {[%emt 0:00:02]} Ke7 {[%emt 0:00:55]} 41. R1b7 {[%emt 0:02:25]} Rxb7 {[%emt 0:00:58]} 42. Rxb7+ {[%emt 0:00:01]} Kf6 {[%emt 0:02:01]} 43. Bb5 {[%emt 0:00:02]} Nd6 {[%emt 0:03:06]} 44. Rxa7 {[%emt 0:01:44]} Nxb5 {[%emt 0:04:08]} 45. cxb5 {[%emt 0:00:02]} Rc5 {[%emt 0:00:16]} 46. Ra6+ {[%emt 0:00:30]} Kf5 {[%emt 0:01:22]} 47. Ra7 {[%emt 0:00:07]} Kg6 {[%emt 0:00:34]} 48. b6 {[%emt 0:00:18]} Rxd5 {[%emt 0:00:11]} 49. b7 {[%emt 0:00:02]} Rb5 {[%emt 0:00:14]} 50. Kf2 {[%emt 0:00:07]} Rb3 {[%emt 0:01:03]} 51. Ke2 {[%emt 0:00:12]} e4 {[%emt 0:02:00]} 52. Kd2 {[%emt 0:00:11]} e3+ {[%emt 0:00:21]} 53. Ke2 {[%emt 0:01:37]} h5 {[%emt 0:03:10]} 54. h4 {[%emt 0:01:23]} f6 {[%emt 0:01:18]} 55. Kf3 {[%emt 0:00:07]} Kh6 {[%emt 0:00:22]} 56. Ke2 {[%emt 0:02:47]} g5 {[%emt 0:01:05]} 57. Ra6 {[%emt 0:00:36]} Kg7 {[%emt 0:00:30]} 58. Ra7 {[%emt 0:00:23]} Kg6 {[%emt 0:00:10]} 59. Ra6 {[%emt 0:01:17]} Kf5 {[%emt 0:03:43]} 60. Ra5+ {[%emt 0:00:14]} Kg4 {[%emt 0:00:42]} 61. Ra4+ {[%emt 0:00:01]} Kg3 {[%emt 0:01:12]} 62. hxg5 {[%emt 0:00:09]} fxg5 {[%emt 0:00:13]} 63. Ra5 {[%emt 0:00:07]} Kh4 {[%emt 0:00:24]} 64. Ra7 {[%emt 0:00:04]} g4 {[%emt 0:00:14]} 65. Kf1 {[%emt 0:00:02]} Kg3 {[%emt 0:00:49]} 66. Ke2 {[%emt 0:00:20]} h4 {[%emt 0:00:00]} 67. Kd1 {[%emt 0:00:22]} h3 {[%emt 0:00:25]} 68. Ke2 {[%emt 0:00:53]} h2 {[%emt 0:00:35]} 69. Ra1 {[%emt 0:01:39]} 0-1

[Event "SWE-ch 2019"]
[Site "Eskilstuna"]
[Date "2019.07.10"]
[Round "5.5"]
[White "Cramling, Pia"]
[Black "Johansson, Linus"]
[Result "1/2-1/2"]
[ECO "A31"]
[WhiteElo "2479"]
[BlackElo "2480"]
[Annotator "ChessBase"]
[PlyCount "172"]
[EventDate "2019.07.06"]
[EventType "tourn"]
[EventCountry "SWE"]
[SourceTitle "playchess.com"]
[Source "ChessBase"]
[SourceQuality "1"]
[TimeControl "40/5400+30:1800+30"]

1. Nf3 {[%emt 0:00:06]} c5 {[%emt 0:00:00]} 2. c4 {[%emt 0:00:07]} Nc6 {[%emt 0:00:00]} 3. d4 {[%emt 0:00:13]} cxd4 {[%emt 0:00:00]} 4. Nxd4 {[%emt 0:00:03]} Qb6 {[%emt 0:00:00]} 5. e3 {[%emt 0:04:08]} e6 {[%emt 0:00:33]} 6. Nc3 {[%emt 0:01:07]} Nf6 {[%emt 0:00:07]} 7. Be2 {[%emt 0:09:53]} Be7 {[%emt 0:00:42]} 8. O-O {[%emt 0:04:50]} O-O {[%emt 0:00:06]} 9. b3 {[%emt 0:04:52]} d5 {[%emt 0:01:06]} 10. Na4 {[%emt 0:04:23]} Qa5 {[%emt 0:06:04]} 11. Bd2 {[%emt 0:00:57]} Qd8 {[%emt 0:02:37]} 12. Bc3 {[%emt 0:01:44]} Bd7 {[%emt 0:02:26]} 13. cxd5 {[%emt 0:05:22]} Nxd5 {[%emt 0:02:32]} 14. Bb2 {[%emt 0:00:21]} Nxd4 {[%emt 0:09:11]} 15. Bxd4 {[%emt 0:00:11]} Bxa4 {[%emt 0:05:15]} 16. bxa4 {[%emt 0:00:09]} Bf6 {[%emt 0:01:26]} 17. Bf3 {[%emt 0:03:14]} Nb6 {[%emt 0:06:00]} 18. Bxf6 {[%emt 0:16:47]} Qxf6 {[%emt 0:00:05]} 19. Qb3 {[%emt 0:00:45]} Rac8 {[%emt 0:03:46]} 20. Rad1 {[%emt 0:05:21]} Rc3 {[%emt 0:05:05]} 21. Qb5 {[%emt 0:01:56]} Rc2 {[%emt 0:07:16]} 22. Rd4 {[%emt 0:07:19]} e5 {[%emt 0:11:17]} 23. Re4 {[%emt 0:04:10]} Rxa2 {[%emt 0:01:52]} 24. a5 {[%emt 0:10:22]} Nc8 {[%emt 0:01:12]} 25. Qxe5 {[%emt 0:00:22]} Qa6 {[%emt 0:01:55]} 26. Rg4 {[%emt 0:08:36]} g6 {[%emt 0:01:05]} 27. Qc7 {[%emt 0:00:14]} Qxa5 {[%emt 0:09:34]} 28. Qxa5 {[%emt 0:00:08]} Rxa5 {[%emt 0:00:03]} 29. Bxb7 {[%emt 0:00:05]} Nb6 {[%emt 0:00:20]} 30. Rd1 {[%emt 0:00:56]} Kg7 {[%emt 0:00:36]} 31. g3 {[%emt 0:00:16]} Rb8 {[%emt 0:00:18]} 32. Bf3 {[%emt 0:00:26]} Rc8 {[%emt 0:00:17]} 33. Rgd4 {[%emt 0:00:46]} Rc2 {[%emt 0:00:24]} 34. R4d2 {[%emt 0:00:14]} Rc7 {[%emt 0:04:22]} 35. h4 {[%emt 0:00:22]} Kf6 {[%emt 0:02:28]} 36. Rd4 {[%emt 0:00:54]} Ra2 {[%emt 0:04:01]} 37. R1d2 {[%emt 0:01:35]} Rxd2 {[%emt 0:02:01]} 38. Rxd2 {[%emt 0:00:02]} h5 {[%emt 0:01:09]} 39. Kg2 {[%emt 0:01:18]} Ke7 {[%emt 0:00:54]} 40. Ra2 {[%emt 0:02:19]} Kd6 {[%emt 0:03:25]} 41. Ra5 {[%emt 0:30:35]} Nc4 {[%emt 0:35:12]} 42. Rd5+ {[%emt 0:00:00]} Ke6 {[%emt 0:00:00]} 43. Rd4 {[%emt 0:00:00]} Nb6 {[%emt 0:00:00]} 44. Bd1 {[%emt 0:00:00]} Rc3 {[%emt 0:00:00]} 45. Rd8 {[%emt 0:00:00]} Ke7 {[%emt 0:00:00]} 46. Rb8 {[%emt 0:00:00]} Rd3 {[%emt 0:00:00]} 47. Bc2 {[%emt 0:00:00]} Rd8 {[%emt 0:00:00]} 48. Rb7+ {[%emt 0:00:00]} Rd7 {[%emt 0:00:00]} 49. Rb8 {[%emt 0:00:00]} Nc4 {[%emt 0:00:00]} 50. Bb3 {[%emt 0:00:00]} Ne5 {[%emt 0:00:00]} 51. Rb5 {[%emt 0:00:00]} Ng4 {[%emt 0:00:00]} 52. Bd5 {[%emt 0:00:00]} Rc7 {[%emt 0:00:00]} 53. Bf3 {[%emt 0:00:00]} Nf6 {[%emt 0:00:00]} 54. Re5+ {[%emt 0:00:00]} Kd6 {[%emt 0:00:00]} 55. Ra5 {[%emt 0:00:00]} Nd7 {[%emt 0:00:00]} 56. Rd5+ {[%emt 0:00:00]} Ke7 {[%emt 0:00:00]} 57. Ra5 {[%emt 0:00:00]} Nc5 {[%emt 0:00:00]} 58. Ra2 {[%emt 0:01:36]} Nd3 {[%emt 0:00:00]} 59. Be4 {[%emt 0:00:35]} Ne5 {[%emt 0:00:00]} 60. Ra5 {[%emt 0:00:41]} Nc4 {[%emt 0:00:00]} 61. Ra6 {[%emt 0:00:33]} Nb6 {[%emt 0:00:00]} 62. Ra5 {[%emt 0:00:30]} Kd6 {[%emt 0:00:00]} 63. Bf3 {[%emt 0:00:42]} Nc4 {[%emt 0:00:00]} 64. Rd5+ {[%emt 0:00:24]} Ke7 {[%emt 0:00:00]} 65. Be2 {[%emt 0:00:22]} Ke6 {[%emt 0:01:37]} 66. Rd4 {[%emt 0:00:30]} Nb6 {[%emt 0:01:11]} 67. Bd1 {[%emt 0:00:24]} Rd7 {[%emt 0:01:17]} 68. Bb3+ {[%emt 0:00:16]} Ke7 {[%emt 0:00:24]} 69. Rf4 {[%emt 0:00:17]} Kf8 {[%emt 0:00:25]} 70. Kf3 {[%emt 0:01:24]} Kg7 {[%emt 0:00:14]} 71. Rb4 {[%emt 0:00:41]} Rd2 {[%emt 0:00:55]} 72. Ba4 {[%emt 0:03:56]} Kf8 {[%emt 0:01:36]} 73. Bc6 {[%emt 0:00:25]} Ke7 {[%emt 0:00:32]} 74. e4 {[%emt 0:01:34]} Rc2 {[%emt 0:02:49]} 75. Bb5 {[%emt 0:00:39]} Ke6 {[%emt 0:01:11]} 76. Bd3 {[%emt 0:00:32]} Rc3 {[%emt 0:01:18]} 77. Ke3 {[%emt 0:00:09]} Ra3 {[%emt 0:01:11]} 78. f4 {[%emt 0:00:27]} Kd6 {[%emt 0:03:55]} 79. Kd4 {[%emt 0:01:18]} Ra1 {[%emt 0:01:16]} 80. e5+ {[%emt 0:00:33]} Ke7 {[%emt 0:00:18]} 81. Rb3 {[%emt 0:00:15]} Ra5 {[%emt 0:01:36]} 82. Bb5 {[%emt 0:00:28]} Nd7 {[%emt 0:00:24]} 83. Bc4 {[%emt 0:01:09]} Nb6 {[%emt 0:00:04]} 84. Bb5 {[%emt 0:00:29]} Nd7 {[%emt 0:00:06]} 85. Bc4 {[%emt 0:00:20]} Nb6 {[%emt 0:00:05]} 86. Bb5 {[%emt 0:00:27]} Nd7 {[%emt 0:00:15]} 1/2-1/2

[Event "SWE-ch 2019"]
[Site "Eskilstuna"]
[Date "2019.07.11"]
[Round "6.1"]
[White "Lokander, Martin"]
[Black "Wiedenkeller, Michael"]
[Result "1/2-1/2"]
[ECO "A18"]
[WhiteElo "2397"]
[BlackElo "2461"]
[Annotator "ChessBase"]
[PlyCount "81"]
[EventDate "2019.07.06"]
[EventType "tourn"]
[EventCountry "SWE"]
[SourceTitle "playchess.com"]
[Source "ChessBase"]
[SourceQuality "1"]
[TimeControl "40/5400+30:1800+30"]

1. c4 {[%emt 0:00:00]} Nf6 {[%emt 0:00:00]} 2. Nc3 {[%emt 0:00:00]} e6 {[%emt 0:00:12]} 3. e4 {[%emt 0:00:04]} d5 {[%emt 0:00:12]} 4. cxd5 {[%emt 0:00:19]} exd5 {[%emt 0:00:08]} 5. e5 {[%emt 0:00:03]} Ne4 {[%emt 0:00:45]} 6. Nf3 {[%emt 0:00:14]} Bf5 {[%emt 0:05:07]} 7. d3 {[%emt 0:00:37]} Nxc3 8. bxc3 {[%emt 0:00:05]} c5 {[%emt 0:07:32]} 9. d4 {[%emt 0:00:33]} Nc6 {[%emt 0:04:06]} 10. Bd3 {[%emt 0:01:04]} Bxd3 {[%emt 0:01:08]} 11. Qxd3 {[%emt 0:00:06]} cxd4 {[%emt 0:00:29]} 12. Nxd4 {[%emt 0:04:37]} Nxd4 {[%emt 0:04:08]} 13. cxd4 {[%emt 0:00:08]} Bb4+ {[%emt 0:01:03]} 14. Ke2 {[%emt 0:01:07]} Qa5 {[%emt 0:08:38]} 15. a3 {[%emt 0:04:11]} Bc3 {[%emt 0:15:46]} 16. Rb1 {[%emt 0:02:11]} O-O {[%emt 0:01:25]} 17. Rb5 {[%emt 0:06:10]} Qa4 {[%emt 0:00:41]} 18. Rxd5 {[%emt 0:00:19]} Rac8 {[%emt 0:03:01]} 19. Be3 {[%emt 0:03:45]} Qxa3 {[%emt 0:02:01]} 20. Rc5 {[%emt 0:09:30]} Rxc5 {[%emt 0:06:26]} 21. dxc5 {[%emt 0:00:04]} Qa2+ {[%emt 0:02:28]} 22. Kf3 {[%emt 0:00:05]} Bxe5 {[%emt 0:00:43]} 23. Rb1 {[%emt 0:02:11]} b6 {[%emt 0:11:20]} 24. cxb6 {[%emt 0:00:16]} axb6 {[%emt 0:00:06]} 25. Rxb6 {[%emt 0:00:22]} g6 {[%emt 0:01:58]} 26. g3 {[%emt 0:01:03]} Qa8+ {[%emt 0:00:24]} 27. Qe4 {[%emt 0:00:13]} Qxe4+ {[%emt 0:00:06]} 28. Kxe4 {[%emt 0:00:04]} Re8 {[%emt 0:00:14]} 29. Kf3 {[%emt 0:00:11]} h5 {[%emt 0:00:12]} 30. Bf4 {[%emt 0:00:21]} Bxf4 {[%emt 0:00:16]} 31. Kxf4 {[%emt 0:00:04]} Re2 {[%emt 0:00:17]} 32. Kf3 {[%emt 0:00:04]} Re5 {[%emt 0:00:15]} 33. h4 {[%emt 0:00:04]} Kg7 {[%emt 0:00:07]} 34. Kg2 {[%emt 0:00:05]} Rf5 {[%emt 0:00:06]} 35. Ra6 {[%emt 0:00:04]} Re5 {[%emt 0:00:07]} 36. Rb6 {[%emt 0:00:03]} Rf5 {[%emt 0:00:07]} 37. Ra6 {[%emt 0:00:03]} Re5 {[%emt 0:00:03]} 38. Rb6 {[%emt 0:00:02]} Rf5 {[%emt 0:00:05]} 39. Ra6 {[%emt 0:00:03]} Re5 {[%emt 0:00:05]} 40. Rb6 {[%emt 0:00:02]} Rf5 {[%emt 0:00:09]} 41. Ra6 {[%emt 0:30:04]} 1/2-1/2

[Event "SWE-ch 2019"]
[Site "Eskilstuna"]
[Date "2019.07.11"]
[Round "6.3"]
[White "Johansson, Linus"]
[Black "Kucuksari, Kaan"]
[Result "1-0"]
[ECO "A07"]
[WhiteElo "2480"]
[BlackElo "2310"]
[Annotator "ChessBase"]
[PlyCount "103"]
[EventDate "2019.07.06"]
[EventType "tourn"]
[EventCountry "SWE"]
[SourceTitle "playchess.com"]
[Source "ChessBase"]
[SourceQuality "1"]
[TimeControl "40/5400+30:1800+30"]

1. Nf3 {[%emt 0:00:00]} Nf6 {[%emt 0:00:00]} 2. g3 {[%emt 0:00:00]} d5 {[%emt 0:00:14]} 3. Bg2 {[%emt 0:00:00]} c6 {[%emt 0:00:20]} 4. O-O {[%emt 0:00:06]} Bf5 {[%emt 0:02:26]} 5. b3 {[%emt 0:01:16]} Nbd7 {[%emt 0:00:19]} 6. Bb2 {[%emt 0:00:07]} e6 {[%emt 0:01:36]} 7. d3 {[%emt 0:07:36]} Bd6 {[%emt 0:00:18]} 8. Nbd2 {[%emt 0:00:26]} Qe7 {[%emt 0:03:58]} 9. Qe1 {[%emt 0:01:30]} Bg4 {[%emt 0:01:55]} 10. e4 {[%emt 0:02:55]} Bxf3 {[%emt 0:01:30]} 11. Nxf3 {[%emt 0:01:07]} dxe4 {[%emt 0:01:20]} 12. dxe4 {[%emt 0:00:09]} e5 {[%emt 0:00:35]} 13. Nh4 {[%emt 0:09:46]} g6 {[%emt 0:00:20]} 14. Qd2 {[%emt 0:03:26]} Nc5 {[%emt 0:05:25]} 15. Rae1 {[%emt 0:07:34]} O-O-O {[%emt 0:03:00]} 16. Qc1 {[%emt 0:02:04]} Ne6 {[%emt 0:07:38]} 17. Kh1 {[%emt 0:03:52]} Nh5 {[%emt 0:13:14]} 18. Nf3 {[%emt 0:03:43]} f6 {[%emt 0:00:21]} 19. Nd2 {[%emt 0:00:14]} Bc5 {[%emt 0:01:48]} 20. c3 {[%emt 0:02:56]} Nhg7 {[%emt 0:12:03]} 21. b4 {[%emt 0:03:35]} Bd6 {[%emt 0:05:39]} 22. Nc4 {[%emt 0:02:47]} h5 {[%emt 0:00:01]} 23. Nxd6+ {[%emt 0:01:02]} Rxd6 {[%emt 0:00:02]} 24. Rd1 {[%emt 0:01:04]} h4 {[%emt 0:00:58]} 25. Rxd6 {[%emt 0:04:07]} Qxd6 {[%emt 0:00:02]} 26. Rd1 {[%emt 0:00:14]} Qc7 {[%emt 0:04:57]} 27. Kg1 {[%emt 0:00:21]} h3 {[%emt 0:15:11]} 28. Bf3 {[%emt 0:01:53]} Kb8 {[%emt 0:08:07]} 29. Rd3 {[%emt 0:06:20]} Ng5 {[%emt 0:04:11]} 30. Bh1 {[%emt 0:01:04]} N7e6 {[%emt 0:01:32]} 31. Qd1 {[%emt 0:00:16]} c5 {[%emt 0:04:38]} 32. a3 {[%emt 0:00:11]} a5 {[%emt 0:00:32]} 33. b5 {[%emt 0:13:51]} c4 {[%emt 0:00:15]} 34. Rd7 {[%emt 0:01:38]} Rd8 {[%emt 0:00:19]} 35. Rxd8+ {[%emt 0:02:33]} Qxd8 {[%emt 0:00:01]} 36. Qxd8+ {[%emt 0:03:02]} Nxd8 {[%emt 0:00:01]} 37. f4 {[%emt 0:02:34]} Ngf7 {[%emt 0:01:56]} 38. f5 {[%emt 0:05:05]} gxf5 {[%emt 0:01:44]} 39. exf5 {[%emt 0:00:07]} Nd6 {[%emt 0:00:15]} 40. Bd5 {[%emt 0:00:45]} Nxb5 {[%emt 0:00:44]} 41. Bxc4 {[%emt 0:30:31]} Nd6 {[%emt 0:30:19]} 42. Bf1 {[%emt 0:01:21]} Nxf5 {[%emt 0:00:00]} 43. Bxh3 {[%emt 0:00:00]} Nh6 {[%emt 0:00:00]} 44. a4 {[%emt 0:00:00]} b6 {[%emt 0:00:00]} 45. Ba3 {[%emt 0:00:00]} Nb7 {[%emt 0:00:00]} 46. Bf8 {[%emt 0:00:00]} Nf7 {[%emt 0:00:00]} 47. Be6 {[%emt 0:00:00]} Ng5 {[%emt 0:00:00]} 48. Bd5 {[%emt 0:00:00]} Kc7 {[%emt 0:00:00]} 49. h4 {[%emt 0:00:00]} Nh7 {[%emt 0:00:00]} 50. Bg7 {[%emt 0:00:00]} Nd6 {[%emt 0:00:00]} 51. g4 {[%emt 0:00:00]} f5 {[%emt 0:00:00]} 52. g5 {[%emt 0:00:00]} 1-0